[Event "Titled Tuesday Blitz July 18 Late 2023"]
[White "Sokolovsky, Yahli"]
[Black "Jian, Alex"]
[WhiteFideId "2820242"]
[BlackFideId "30901022"]
[WhiteElo "2726"]
[BlackElo "2417"]
[Result "1-0"]
[Round "1"]
[TimeControl "180+2"]
[Date "2023.07.18"]
[WhiteClock "0:00:03"]
[BlackClock "0:00:00"]
[Board "66"]

1. b3 {[%clk 0:03:00]}  Nf6 {[%clk 0:02:59]} 2. Bb2 {[%clk 0:03:01]}  d5 {[%clk 0:02:59]} 3. Nf3 {[%clk 0:03:01]}  c5 {[%clk 0:02:59]} 4. e3 {[%clk 0:03:01]}  Nc6 {[%clk 0:02:59]} 5. d4 {[%clk 0:03:02]}  Bg4 {[%clk 0:02:58]} 6. Be2 {[%clk 0:02:58]}  e6 {[%clk 0:02:58]} 7. h3 {[%clk 0:02:57]}  Bh5 {[%clk 0:02:59]} 8. Ne5 {[%clk 0:02:58]}  Bxe2 {[%clk 0:02:56]} 9. Qxe2 {[%clk 0:02:59]}  Nxe5 {[%clk 0:02:57]} 10. dxe5 {[%clk 0:02:58]}  Nd7 {[%clk 0:02:57]} 11. O-O {[%clk 0:02:56]}  Be7 {[%clk 0:02:53]} 12. f4 {[%clk 0:02:55]}  O-O {[%clk 0:02:53]} 13. c4 {[%clk 0:02:56]}  Nb6 {[%clk 0:02:35]} 14. Nc3 {[%clk 0:02:55]}  dxc4 {[%clk 0:02:20]} 15. bxc4 {[%clk 0:02:56]}  Qc7 {[%clk 0:02:17]} 16. Ne4 {[%clk 0:02:53]}  Rad8 {[%clk 0:02:13]} 17. Nf6+ {[%clk 0:02:43]}  Kh8 {[%clk 0:02:05]} 18. Qh5 {[%clk 0:02:42]}  gxf6 {[%clk 0:01:40]} 19. f5 {[%clk 0:01:50]}  fxe5 {[%clk 0:01:06]} 20. Rf4 {[%clk 0:01:30]}  f6 {[%clk 0:00:42]} 21. Rh4 {[%clk 0:01:31]}  Bd6 {[%clk 0:00:40]} 22. fxe6 {[%clk 0:01:31]}  Qg7 {[%clk 0:00:27]} 23. Rg4 {[%clk 0:01:22]}  Qe7 {[%clk 0:00:27]} 24. Qf5 {[%clk 0:01:22]}  Rg8 {[%clk 0:00:25]} 25. Rh4 {[%clk 0:00:58]}  Rg5 {[%clk 0:00:23]} 26. Rxh7+ {[%clk 0:00:59]}  Kg8 {[%clk 0:00:12]} 27. Rxe7 {[%clk 0:00:56]}  Rxf5 {[%clk 0:00:13]} 28. Rxb7 {[%clk 0:00:57]}  Nxc4 {[%clk 0:00:11]} 29. Bc3 {[%clk 0:00:50]}  Re8 {[%clk 0:00:09]} 30. Rxa7 {[%clk 0:00:42]}  Rxe6 {[%clk 0:00:09]} 31. Rb1 {[%clk 0:00:43]}  Nxe3 {[%clk 0:00:08]} 32. Rbb7 {[%clk 0:00:41]}  Rg5 {[%clk 0:00:08]} 33. g4 {[%clk 0:00:35]}  Bf8 {[%clk 0:00:08]} 34. Bd2 {[%clk 0:00:36]}  Rg7 {[%clk 0:00:03]} 35. Rxg7+ {[%clk 0:00:31]}  Bxg7 {[%clk 0:00:03]} 36. Bxe3 {[%clk 0:00:32]}  Rc6 {[%clk 0:00:03]} 37. Kf2 {[%clk 0:00:17]}  c4 {[%clk 0:00:04]} 38. Ke2 {[%clk 0:00:18]}  c3 {[%clk 0:00:03]} 39. Kd1 {[%clk 0:00:19]}  c2+ {[%clk 0:00:03]} 40. Kc1 {[%clk 0:00:20]}  Bf8 {[%clk 0:00:03]} 41. h4 {[%clk 0:00:11]}  Bd6 {[%clk 0:00:02]} 42. h5 {[%clk 0:00:10]}  e4 {[%clk 0:00:02]} 43. h6 {[%clk 0:00:10]}  Be5 {[%clk 0:00:03]} 44. Ra4 {[%clk 0:00:05]}  Kh8 {[%clk 0:00:02]} 45. Rxe4 {[%clk 0:00:05]}  Rc8 {[%clk 0:00:02]} 46. Rxe5 {[%clk 0:00:04]}  fxe5 {[%clk 0:00:02]} 47. g5 {[%clk 0:00:05]}  Kh7 {[%clk 0:00:02]} 48. a4 {[%clk 0:00:05]}  Kg6 {[%clk 0:00:03]} 49. a5 {[%clk 0:00:05]}  Ra8 {[%clk 0:00:03]} 50. Bd2 {[%clk 0:00:06]}  e4 {[%clk 0:00:01]} 51. Kxc2 {[%clk 0:00:06]}  e3 {[%clk 0:00:02]} 52. Bc3 {[%clk 0:00:04]}  Rc8 {[%clk 0:00:01]} 53. Kd3 {[%clk 0:00:04]}  e2 {[%clk 0:00:02]} 54. Bd2 {[%clk 0:00:04]}  e1=Q {[%clk 0:00:01]} 55. Bxe1 {[%clk 0:00:04]}  Kxg5 {[%clk 0:00:02]} 56. Bd2+ {[%clk 0:00:04]}  Kg6 {[%clk 0:00:02]} 57. Be3 {[%clk 0:00:04]}  Rh8 {[%clk 0:00:02]} 58. Kc4 {[%clk 0:00:04]}  Kf7 {[%clk 0:00:02]} 59. Kb5 {[%clk 0:00:04]}  Ke6 {[%clk 0:00:02]} 60. Kb6 {[%clk 0:00:03]}  Rh7 {[%clk 0:00:03]} 61. a6 {[%clk 0:00:03]}  Kd6 {[%clk 0:00:02]} 62. a7 {[%clk 0:00:03]}  Rh8 {[%clk 0:00:02]} 63. Bf4+ {[%clk 0:00:03]}  Ke6 {[%clk 0:00:02]} 64. Bb8 {[%clk 0:00:03]}  Rxh6 {[%clk 0:00:02]} 65. a8=Q {[%clk 0:00:03]}  Kd7+ {[%clk 0:00:02]} 66. Kb7 {[%clk 0:00:03]}  Rh3 {[%clk 0:00:02]} 67. Qa4+ {[%clk 0:00:03]}  Kd8 {[%clk 0:00:00]} 68. Qd4+ {[%clk 0:00:03]} 1-0


[Site "https://www.chess.com"]

[Event "Titled Tuesday Blitz July 18 Late 2023"]
[White "Jonkman, Harmen"]
[Black "Volovich, Vasily"]
[WhiteFideId "1002708"]
[BlackFideId "34169676"]
[WhiteElo "2414"]
[BlackElo "2710"]
[Result "0-1"]
[Round "1"]
[TimeControl "180+2"]
[Date "2023.07.18"]
[WhiteClock "0:00:00"]
[BlackClock "0:00:57"]
[Board "69"]

1. d4 {[%clk 0:02:59]}  Nf6 {[%clk 0:02:59]} 2. Nf3 {[%clk 0:02:59]}  e6 {[%clk 0:02:59]} 3. Bf4 {[%clk 0:02:59]}  d5 {[%clk 0:02:59]} 4. e3 {[%clk 0:02:58]}  c5 {[%clk 0:02:59]} 5. Nbd2 {[%clk 0:02:58]}  Nc6 {[%clk 0:02:59]} 6. c3 {[%clk 0:02:53]}  Be7 {[%clk 0:02:59]} 7. Bd3 {[%clk 0:02:53]}  Nh5 {[%clk 0:02:59]} 8. Be5 {[%clk 0:02:53]}  f6 {[%clk 0:02:59]} 9. Bg3 {[%clk 0:02:51]}  g6 {[%clk 0:02:59]} 10. dxc5 {[%clk 0:02:40]}  Bxc5 {[%clk 0:02:58]} 11. e4 {[%clk 0:02:37]}  f5 {[%clk 0:02:57]} 12. exd5 {[%clk 0:02:35]}  exd5 {[%clk 0:02:56]} 13. Bh4 {[%clk 0:02:19]}  Be7 {[%clk 0:02:41]} 14. Bxe7 {[%clk 0:02:09]}  Qxe7+ {[%clk 0:02:41]} 15. Qe2 {[%clk 0:02:07]}  Nf4 {[%clk 0:02:42]} 16. Qxe7+ {[%clk 0:02:07]}  Kxe7 {[%clk 0:02:43]} 17. Bf1 {[%clk 0:02:05]}  Kd6 {[%clk 0:02:42]} 18. O-O-O {[%clk 0:02:03]}  Be6 {[%clk 0:02:30]} 19. g3 {[%clk 0:01:50]}  Nh5 {[%clk 0:02:30]} 20. Bg2 {[%clk 0:01:44]}  Nf6 {[%clk 0:02:22]} 21. Rhe1 {[%clk 0:01:33]}  Rhe8 {[%clk 0:02:22]} 22. Nc4+ {[%clk 0:01:11]}  Kc5 {[%clk 0:02:17]} 23. Nce5 {[%clk 0:01:10]}  Ne4 {[%clk 0:02:12]} 24. Nd3+ {[%clk 0:01:05]}  Kb6 {[%clk 0:02:07]} 25. Nd4 {[%clk 0:01:01]}  Nxd4 {[%clk 0:02:00]} 26. cxd4 {[%clk 0:01:01]}  Rac8+ {[%clk 0:01:59]} 27. Kb1 {[%clk 0:01:01]}  Bd7 {[%clk 0:01:44]} 28. Nf4 {[%clk 0:00:43]}  Nxf2 {[%clk 0:01:30]} 29. Nxd5+ {[%clk 0:00:40]}  Ka5 {[%clk 0:01:31]} 30. b4+ {[%clk 0:00:19]}  Ka4 {[%clk 0:01:23]} 31. Rxe8 {[%clk 0:00:16]}  Bxe8 {[%clk 0:01:11]} 32. Rd2 {[%clk 0:00:00]}  Ng4 {[%clk 0:00:57]} 0-1


[Site "https://www.chess.com"]

[Event "Titled Tuesday Blitz July 18 Late 2023"]
[White "Goltsev, Dmitry"]
[Black "KorolDimitriy75"]
[WhiteFideId "24176710"]
[WhiteElo "2710"]
[BlackElo "2413"]
[Result "1/2-1/2"]
[Round "1"]
[TimeControl "180+2"]
[Date "2023.07.18"]
[WhiteClock "0:00:52"]
[BlackClock "0:00:14"]
[Board "70"]

1. e4 {[%clk 0:03:00]}  c5 {[%clk 0:03:00]} 2. Nf3 {[%clk 0:03:00]}  d6 {[%clk 0:03:00]} 3. d4 {[%clk 0:03:01]}  cxd4 {[%clk 0:03:01]} 4. Nxd4 {[%clk 0:03:02]}  Nf6 {[%clk 0:03:01]} 5. Nc3 {[%clk 0:03:02]}  g6 {[%clk 0:03:02]} 6. Be2 {[%clk 0:03:01]}  Bg7 {[%clk 0:03:02]} 7. O-O {[%clk 0:03:02]}  O-O {[%clk 0:03:03]} 8. Be3 {[%clk 0:03:02]}  Nc6 {[%clk 0:03:03]} 9. f4 {[%clk 0:03:02]}  Qb6 {[%clk 0:03:03]} 10. Qd2 {[%clk 0:03:01]}  Nxe4 {[%clk 0:02:54]} 11. Nxe4 {[%clk 0:02:52]}  Bxd4 {[%clk 0:02:53]} 12. Bxd4 {[%clk 0:02:49]}  Qxd4+ {[%clk 0:02:54]} 13. Qxd4 {[%clk 0:02:49]}  Nxd4 {[%clk 0:02:55]} 14. Bd3 {[%clk 0:02:49]}  Bf5 {[%clk 0:02:44]} 15. c3 {[%clk 0:02:47]}  Nc6 {[%clk 0:02:40]} 16. Rfe1 {[%clk 0:02:46]}  Rfe8 {[%clk 0:02:38]} 17. Rad1 {[%clk 0:02:42]}  Rac8 {[%clk 0:02:31]} 18. h3 {[%clk 0:02:38]}  h5 {[%clk 0:02:30]} 19. Re3 {[%clk 0:02:37]}  Kg7 {[%clk 0:02:21]} 20. Kf2 {[%clk 0:02:34]}  d5 {[%clk 0:01:42]} 21. Nc5 {[%clk 0:02:31]}  Bxd3 {[%clk 0:01:43]} 22. Nxd3 {[%clk 0:02:31]}  e6 {[%clk 0:01:39]} 23. Rde1 {[%clk 0:02:21]}  h4 {[%clk 0:01:21]} 24. R1e2 {[%clk 0:02:14]}  Ne7 {[%clk 0:01:16]} 25. Ne1 {[%clk 0:02:13]}  Nf5 {[%clk 0:01:15]} 26. Rd3 {[%clk 0:02:12]}  Red8 {[%clk 0:01:05]} 27. Nf3 {[%clk 0:02:12]}  Kf6 {[%clk 0:01:01]} 28. Ne5 {[%clk 0:02:09]}  a6 {[%clk 0:00:55]} 29. Red2 {[%clk 0:02:05]}  b5 {[%clk 0:00:49]} 30. a3 {[%clk 0:02:04]}  Rc7 {[%clk 0:00:38]} 31. Re2 {[%clk 0:02:02]}  Rdc8 {[%clk 0:00:38]} 32. Ng4+ {[%clk 0:01:59]}  Kg7 {[%clk 0:00:36]} 33. Kf3 {[%clk 0:01:56]}  Nd6 {[%clk 0:00:30]} 34. Ke3 {[%clk 0:01:49]}  Nf5+ {[%clk 0:00:28]} 35. Kf2 {[%clk 0:01:48]}  Rb8 {[%clk 0:00:27]} 36. Ne5 {[%clk 0:01:45]}  Rbc8 {[%clk 0:00:26]} 37. Re1 {[%clk 0:01:42]}  Kf6 {[%clk 0:00:24]} 38. Kf3 {[%clk 0:01:34]}  Rb8 {[%clk 0:00:22]} 39. Red1 {[%clk 0:01:29]}  Rbc8 {[%clk 0:00:21]} 40. Ra1 {[%clk 0:01:28]}  Rb8 {[%clk 0:00:19]} 41. Rd2 {[%clk 0:01:26]}  a5 {[%clk 0:00:19]} 42. Kf2 {[%clk 0:01:17]}  Nd6 {[%clk 0:00:17]} 43. Rd4 {[%clk 0:01:12]}  Nc4 {[%clk 0:00:15]} 44. Nd3 {[%clk 0:01:10]}  Nd6 {[%clk 0:00:14]} 45. Ne5 {[%clk 0:01:05]}  Nc4 {[%clk 0:00:13]} 46. Nd3 {[%clk 0:01:02]}  Nd6 {[%clk 0:00:14]} 47. Ne5 {[%clk 0:00:52]} 1/2-1/2


[Site "https://www.chess.com"]

[Event "Titled Tuesday Blitz July 18 Late 2023"]
[White "Uzcategui Rodriguez, Alejandro"]
[Black "Rychagov, Andrey"]
[WhiteFideId "3903400"]
[BlackFideId "4119932"]
[WhiteElo "2413"]
[BlackElo "2707"]
[Result "1-0"]
[Round "1"]
[TimeControl "180+2"]
[Date "2023.07.18"]
[WhiteClock "0:02:03"]
[BlackClock "0:02:02"]
[Board "71"]

1. b3 {[%clk 0:02:59]}  e5 {[%clk 0:02:57]} 2. Bb2 {[%clk 0:03:00]}  d6 {[%clk 0:02:57]} 3. e3 {[%clk 0:02:56]}  Nc6 {[%clk 0:02:56]} 4. c4 {[%clk 0:02:55]}  Nf6 {[%clk 0:02:56]} 5. Nc3 {[%clk 0:02:56]}  Be7 {[%clk 0:02:55]} 6. d3 {[%clk 0:02:54]}  O-O {[%clk 0:02:54]} 7. Nf3 {[%clk 0:02:55]}  h6 {[%clk 0:02:53]} 8. Be2 {[%clk 0:02:54]}  Be6 {[%clk 0:02:52]} 9. e4 {[%clk 0:02:48]}  Nd7 {[%clk 0:02:51]} 10. O-O {[%clk 0:02:48]}  f6 {[%clk 0:02:51]} 11. Nd5 {[%clk 0:02:47]}  f5 {[%clk 0:02:50]} 12. exf5 {[%clk 0:02:40]}  Bxf5 {[%clk 0:02:48]} 13. Ne3 {[%clk 0:02:38]}  Be6 {[%clk 0:02:45]} 14. d4 {[%clk 0:02:38]}  exd4 {[%clk 0:02:39]} 15. Nxd4 {[%clk 0:02:38]}  Nxd4 {[%clk 0:02:38]} 16. Bxd4 {[%clk 0:02:37]}  Bf6 {[%clk 0:02:38]} 17. Bf3 {[%clk 0:02:33]}  Rb8 {[%clk 0:02:35]} 18. Bxa7 {[%clk 0:02:24]}  Bxa1 {[%clk 0:02:18]} 19. Qxa1 {[%clk 0:02:25]}  Ra8 {[%clk 0:02:15]} 20. Bd4 {[%clk 0:02:25]}  c6 {[%clk 0:02:15]} 21. Bxg7 {[%clk 0:02:21]}  Rxf3 {[%clk 0:02:14]} 22. gxf3 {[%clk 0:02:18]}  Qg5+ {[%clk 0:02:13]} 23. Kh1 {[%clk 0:02:18]}  Kh7 {[%clk 0:02:08]} 24. Rg1 {[%clk 0:02:06]}  Qf5 {[%clk 0:02:02]} 25. Nxf5 {[%clk 0:02:03]} 1-0


[Site "https://www.chess.com"]

[Event "Titled Tuesday Blitz July 18 Late 2023"]
[White "Todev, Simeon"]
[Black "Haydon, David L"]
[WhiteFideId "2925133"]
[BlackFideId "415405"]
[WhiteElo "2412"]
[BlackElo "2705"]
[Result "0-1"]
[Round "1"]
[TimeControl "180+2"]
[Date "2023.07.18"]
[WhiteClock "0:00:45"]
[BlackClock "0:01:52"]
[Board "73"]

1. e4 {[%clk 0:02:52]}  c6 {[%clk 0:02:59]} 2. c4 {[%clk 0:02:52]}  d5 {[%clk 0:02:59]} 3. exd5 {[%clk 0:02:53]}  cxd5 {[%clk 0:02:59]} 4. d4 {[%clk 0:02:54]}  Nf6 {[%clk 0:02:59]} 5. Nc3 {[%clk 0:02:53]}  e6 {[%clk 0:02:59]} 6. Nf3 {[%clk 0:02:54]}  dxc4 {[%clk 0:02:58]} 7. Bxc4 {[%clk 0:02:54]}  Be7 {[%clk 0:02:58]} 8. O-O {[%clk 0:02:54]}  O-O {[%clk 0:02:57]} 9. Bg5 {[%clk 0:02:54]}  a6 {[%clk 0:02:57]} 10. Bd3 {[%clk 0:02:54]}  Nc6 {[%clk 0:02:55]} 11. Bc2 {[%clk 0:02:54]}  Nb4 {[%clk 0:02:54]} 12. Bb3 {[%clk 0:02:53]}  b5 {[%clk 0:02:54]} 13. a3 {[%clk 0:02:51]}  Nbd5 {[%clk 0:02:54]} 14. Nxd5 {[%clk 0:02:51]}  Nxd5 {[%clk 0:02:52]} 15. Bxd5 {[%clk 0:02:49]}  exd5 {[%clk 0:02:51]} 16. Bxe7 {[%clk 0:02:49]}  Qxe7 {[%clk 0:02:52]} 17. Re1 {[%clk 0:02:50]}  Be6 {[%clk 0:02:51]} 18. Qd2 {[%clk 0:02:48]}  h6 {[%clk 0:02:51]} 19. Rac1 {[%clk 0:02:49]}  Rfc8 {[%clk 0:02:47]} 20. Qa5 {[%clk 0:02:41]}  Qb7 {[%clk 0:02:42]} 21. Ne5 {[%clk 0:02:36]}  Rab8 {[%clk 0:02:38]} 22. Nd3 {[%clk 0:02:25]}  Rc4 {[%clk 0:02:32]} 23. Nc5 {[%clk 0:02:21]}  Qc6 {[%clk 0:02:32]} 24. Rxc4 {[%clk 0:02:21]}  bxc4 {[%clk 0:02:30]} 25. Qc3 {[%clk 0:02:12]}  Qb6 {[%clk 0:02:26]} 26. Re2 {[%clk 0:02:02]}  Qd6 {[%clk 0:02:16]} 27. Qe3 {[%clk 0:01:51]}  a5 {[%clk 0:02:10]} 28. f3 {[%clk 0:01:39]}  Re8 {[%clk 0:02:01]} 29. Qe5 {[%clk 0:01:36]}  Qb6 {[%clk 0:01:59]} 30. f4 {[%clk 0:01:27]}  Bd7 {[%clk 0:01:56]} 31. Qxe8+ {[%clk 0:01:07]}  Bxe8 {[%clk 0:01:56]} 32. Rxe8+ {[%clk 0:01:07]}  Kh7 {[%clk 0:01:57]} 33. Re2 {[%clk 0:01:03]}  Qf6 {[%clk 0:01:56]} 34. Re5 {[%clk 0:00:54]}  Qxf4 {[%clk 0:01:55]} 35. Rxd5 {[%clk 0:00:54]}  Qc1+ {[%clk 0:01:54]} 36. Kf2 {[%clk 0:00:55]}  Qxb2+ {[%clk 0:01:55]} 37. Kf1 {[%clk 0:00:51]}  c3 {[%clk 0:01:55]} 38. Nd3 {[%clk 0:00:51]}  Qd2 {[%clk 0:01:52]} 39. Ne1 {[%clk 0:00:45]}  c2 {[%clk 0:01:52]} 0-1


[Site "https://www.chess.com"]

[Event "Titled Tuesday Blitz July 18 Late 2023"]
[White "Darini, Pouria"]
[Black "Luong Phuong Hanh"]
[WhiteFideId "12502200"]
[BlackFideId "12401013"]
[WhiteElo "2703"]
[BlackElo "2405"]
[Result "1-0"]
[Round "1"]
[TimeControl "180+2"]
[Date "2023.07.18"]
[WhiteClock "0:02:21"]
[BlackClock "0:02:06"]
[Board "76"]

1. d4 {[%clk 0:02:59]}  Nf6 {[%clk 0:02:56]} 2. Bf4 {[%clk 0:03:00]}  g6 {[%clk 0:02:56]} 3. Nc3 {[%clk 0:03:00]}  d5 {[%clk 0:02:54]} 4. e3 {[%clk 0:03:00]}  c6 {[%clk 0:02:54]} 5. h4 {[%clk 0:03:01]}  h6 {[%clk 0:02:53]} 6. Nf3 {[%clk 0:03:00]}  Bg7 {[%clk 0:02:53]} 7. Ne5 {[%clk 0:03:00]}  Nbd7 {[%clk 0:02:53]} 8. Be2 {[%clk 0:03:01]}  O-O {[%clk 0:02:49]} 9. Qd2 {[%clk 0:02:58]}  b5 {[%clk 0:02:46]} 10. Nxc6 {[%clk 0:02:56]}  Qe8 {[%clk 0:02:46]} 11. Bxb5 {[%clk 0:02:52]}  Nh5 {[%clk 0:02:41]} 12. Nxd5 {[%clk 0:02:40]}  Nxf4 {[%clk 0:02:40]} 13. Nc7 {[%clk 0:02:36]}  Ne6 {[%clk 0:02:25]} 14. Nxe8 {[%clk 0:02:34]}  Rxe8 {[%clk 0:02:26]} 15. O-O {[%clk 0:02:30]}  a6 {[%clk 0:02:26]} 16. Bc4 {[%clk 0:02:27]}  Nb6 {[%clk 0:02:25]} 17. Bb3 {[%clk 0:02:24]}  Nc7 {[%clk 0:02:06]} 18. Qa5 {[%clk 0:02:21]} 1-0


[Site "https://www.chess.com"]

[Event "Titled Tuesday Blitz July 18 Late 2023"]
[White "Fieberg, Samuel"]
[Black "Wieczorek, Oskar"]
[WhiteFideId "12901717"]
[BlackFideId "1133950"]
[WhiteElo "2403"]
[BlackElo "2700"]
[Result "0-1"]
[Round "1"]
[TimeControl "180+2"]
[Date "2023.07.18"]
[WhiteClock "0:00:52"]
[BlackClock "0:01:36"]
[Board "77"]

1. d4 {[%clk 0:02:59]}  Nf6 {[%clk 0:02:59]} 2. Nc3 {[%clk 0:02:56]}  c5 {[%clk 0:02:59]} 3. d5 {[%clk 0:02:48]}  g6 {[%clk 0:02:59]} 4. e4 {[%clk 0:02:48]}  d6 {[%clk 0:02:59]} 5. h3 {[%clk 0:02:47]}  Bg7 {[%clk 0:02:59]} 6. Nf3 {[%clk 0:02:48]}  O-O {[%clk 0:03:00]} 7. Be2 {[%clk 0:02:47]}  e6 {[%clk 0:03:01]} 8. O-O {[%clk 0:02:47]}  exd5 {[%clk 0:03:01]} 9. exd5 {[%clk 0:02:47]}  Re8 {[%clk 0:03:02]} 10. a4 {[%clk 0:02:45]}  Ne4 {[%clk 0:03:02]} 11. Nxe4 {[%clk 0:02:42]}  Rxe4 {[%clk 0:03:02]} 12. Nd2 {[%clk 0:02:42]}  Rd4 {[%clk 0:03:01]} 13. c3 {[%clk 0:02:00]}  Rxd5 {[%clk 0:03:01]} 14. f4 {[%clk 0:01:57]}  Nc6 {[%clk 0:02:10]} 15. Qb3 {[%clk 0:01:19]}  Be6 {[%clk 0:01:53]} 16. Qxb7 {[%clk 0:01:09]}  Na5 {[%clk 0:01:45]} 17. Qa6 {[%clk 0:00:52]}  Bc8 {[%clk 0:01:36]} 0-1


[Site "https://www.chess.com"]

[Event "Titled Tuesday Blitz July 18 Late 2023"]
[White "Quintiliano Pinto, Renato R."]
[Black "Yolosz"]
[WhiteFideId "2117568"]
[WhiteElo "2696"]
[BlackElo "2403"]
[Result "1-0"]
[Round "1"]
[TimeControl "180+2"]
[Date "2023.07.18"]
[WhiteClock "0:00:29"]
[BlackClock "0:00:03"]
[Board "78"]

1. Nf3 {[%clk 0:03:00]}  d5 {[%clk 0:02:56]} 2. b3 {[%clk 0:03:01]}  Bf5 {[%clk 0:02:47]} 3. Bb2 {[%clk 0:03:00]}  e6 {[%clk 0:02:47]} 4. g3 {[%clk 0:02:59]}  Nf6 {[%clk 0:02:29]} 5. Bg2 {[%clk 0:02:59]}  Be7 {[%clk 0:02:28]} 6. O-O {[%clk 0:02:59]}  c6 {[%clk 0:02:27]} 7. c4 {[%clk 0:02:59]}  h6 {[%clk 0:02:25]} 8. d3 {[%clk 0:03:00]}  O-O {[%clk 0:02:23]} 9. Nbd2 {[%clk 0:02:55]}  Nbd7 {[%clk 0:02:22]} 10. a3 {[%clk 0:02:55]}  Bh7 {[%clk 0:02:21]} 11. b4 {[%clk 0:02:51]}  a5 {[%clk 0:02:20]} 12. Bc3 {[%clk 0:02:50]}  axb4 {[%clk 0:02:16]} 13. axb4 {[%clk 0:02:51]}  Qc7 {[%clk 0:02:16]} 14. Qb3 {[%clk 0:02:46]}  Rfb8 {[%clk 0:02:06]} 15. Qb2 {[%clk 0:02:37]}  Qd8 {[%clk 0:01:58]} 16. b5 {[%clk 0:02:30]}  Rxa1 {[%clk 0:01:57]} 17. Rxa1 {[%clk 0:02:29]}  Ra8 {[%clk 0:01:57]} 18. bxc6 {[%clk 0:02:13]}  bxc6 {[%clk 0:01:50]} 19. Nd4 {[%clk 0:02:12]}  Rxa1+ {[%clk 0:01:42]} 20. Qxa1 {[%clk 0:02:13]}  Qc8 {[%clk 0:01:40]} 21. Qa4 {[%clk 0:02:07]}  c5 {[%clk 0:01:23]} 22. Nc6 {[%clk 0:02:04]}  Bf8 {[%clk 0:01:18]} 23. Bxf6 {[%clk 0:01:59]}  Nxf6 {[%clk 0:01:16]} 24. h3 {[%clk 0:01:55]}  Qd7 {[%clk 0:00:57]} 25. Nb3 {[%clk 0:01:50]}  Qd6 {[%clk 0:00:44]} 26. Qb5 {[%clk 0:01:44]}  Bf5 {[%clk 0:00:40]} 27. g4 {[%clk 0:01:40]}  Bg6 {[%clk 0:00:40]} 28. Nba5 {[%clk 0:01:39]}  Nd7 {[%clk 0:00:34]} 29. Qb7 {[%clk 0:01:29]}  Ne5 {[%clk 0:00:30]} 30. cxd5 {[%clk 0:01:24]}  exd5 {[%clk 0:00:28]} 31. Bxd5 {[%clk 0:01:19]}  h5 {[%clk 0:00:20]} 32. g5 {[%clk 0:01:04]}  Nxc6 {[%clk 0:00:17]} 33. Qxc6 {[%clk 0:00:50]}  Qe5 {[%clk 0:00:18]} 34. h4 {[%clk 0:00:48]}  Kh7 {[%clk 0:00:15]} 35. Nc4 {[%clk 0:00:42]}  Qf4 {[%clk 0:00:13]} 36. Be4 {[%clk 0:00:40]}  Qg4+ {[%clk 0:00:11]} 37. Kf1 {[%clk 0:00:40]}  Qxh4 {[%clk 0:00:07]} 38. Bxg6+ {[%clk 0:00:40]}  fxg6 {[%clk 0:00:07]} 39. Qd5 {[%clk 0:00:40]}  Be7 {[%clk 0:00:05]} 40. Ne5 {[%clk 0:00:36]}  Bxg5 {[%clk 0:00:05]} 41. e3 {[%clk 0:00:29]}  Qh3+ {[%clk 0:00:05]} 42. Ke2 {[%clk 0:00:29]}  Qg4+ {[%clk 0:00:03]} 43. Nxg4 {[%clk 0:00:29]} 1-0


[Site "https://www.chess.com"]

[Event "Titled Tuesday Blitz July 18 Late 2023"]
[White "Djabri, Massinas"]
[Black "Rastbod, Ali"]
[WhiteFideId "7905726"]
[BlackFideId "12567477"]
[WhiteElo "2400"]
[BlackElo "2689"]
[Result "0-1"]
[Round "1"]
[TimeControl "180+2"]
[Date "2023.07.18"]
[WhiteClock "0:00:00"]
[BlackClock "0:00:12"]
[Board "81"]

1. d4 {[%clk 0:02:57]}  Nc6 {[%clk 0:02:58]} 2. e4 {[%clk 0:02:56]}  d5 {[%clk 0:02:57]} 3. e5 {[%clk 0:02:46]}  Bf5 {[%clk 0:02:56]} 4. Nf3 {[%clk 0:02:45]}  e6 {[%clk 0:02:56]} 5. Be2 {[%clk 0:02:41]}  f6 {[%clk 0:02:51]} 6. O-O {[%clk 0:02:33]}  fxe5 {[%clk 0:02:50]} 7. dxe5 {[%clk 0:02:34]}  a6 {[%clk 0:02:51]} 8. b3 {[%clk 0:02:26]}  Nh6 {[%clk 0:02:46]} 9. Bb2 {[%clk 0:02:24]}  Bc5 {[%clk 0:02:44]} 10. c4 {[%clk 0:02:16]}  dxc4 {[%clk 0:02:41]} 11. Bxc4 {[%clk 0:02:11]}  Qxd1 {[%clk 0:02:39]} 12. Rxd1 {[%clk 0:02:12]}  Ng4 {[%clk 0:02:38]} 13. Rf1 {[%clk 0:02:05]}  O-O {[%clk 0:02:33]} 14. h3 {[%clk 0:02:01]}  Nh6 {[%clk 0:02:29]} 15. Nbd2 {[%clk 0:01:49]}  Nf7 {[%clk 0:02:20]} 16. a3 {[%clk 0:01:37]}  Rad8 {[%clk 0:02:15]} 17. b4 {[%clk 0:01:26]}  Bd4 {[%clk 0:02:10]} 18. Nxd4 {[%clk 0:01:24]}  Nxd4 {[%clk 0:02:11]} 19. Nb3 {[%clk 0:01:21]}  Nxb3 {[%clk 0:01:52]} 20. Bxb3 {[%clk 0:01:20]}  Rd2 {[%clk 0:01:53]} 21. Bc3 {[%clk 0:01:13]}  Rd3 {[%clk 0:01:52]} 22. Rac1 {[%clk 0:01:12]}  c6 {[%clk 0:01:50]} 23. Bc4 {[%clk 0:01:03]}  Rxc3 {[%clk 0:01:34]} 24. Rxc3 {[%clk 0:01:04]}  Nxe5 {[%clk 0:01:35]} 25. Rd1 {[%clk 0:00:58]}  Kf7 {[%clk 0:01:18]} 26. Be2 {[%clk 0:00:46]}  Ke7 {[%clk 0:01:17]} 27. a4 {[%clk 0:00:41]}  Rc8 {[%clk 0:01:12]} 28. b5 {[%clk 0:00:40]}  axb5 {[%clk 0:01:13]} 29. axb5 {[%clk 0:00:41]}  c5 {[%clk 0:01:14]} 30. b6 {[%clk 0:00:40]}  Nd7 {[%clk 0:01:09]} 31. Bf3 {[%clk 0:00:35]}  Nxb6 {[%clk 0:01:09]} 32. Bxb7 {[%clk 0:00:19]}  Rc7 {[%clk 0:01:08]} 33. Bf3 {[%clk 0:00:18]}  c4 {[%clk 0:01:04]} 34. Rdc1 {[%clk 0:00:15]}  e5 {[%clk 0:01:03]} 35. g4 {[%clk 0:00:14]}  Be6 {[%clk 0:01:04]} 36. Be4 {[%clk 0:00:14]}  h6 {[%clk 0:01:04]} 37. Ra3 {[%clk 0:00:13]}  Nd5 {[%clk 0:00:53]} 38. Bxd5 {[%clk 0:00:12]}  Bxd5 {[%clk 0:00:54]} 39. Kf1 {[%clk 0:00:10]}  Kf6 {[%clk 0:00:48]} 40. h4 {[%clk 0:00:10]}  Rc6 {[%clk 0:00:43]} 41. Ke2 {[%clk 0:00:09]}  g5 {[%clk 0:00:42]} 42. h5 {[%clk 0:00:08]}  e4 {[%clk 0:00:41]} 43. Ke3 {[%clk 0:00:07]}  Be6 {[%clk 0:00:41]} 44. Kd4 {[%clk 0:00:07]}  Rd6+ {[%clk 0:00:37]} 45. Kxe4 {[%clk 0:00:07]}  Rd2 {[%clk 0:00:37]} 46. f3 {[%clk 0:00:07]}  Re2+ {[%clk 0:00:29]} 47. Kd4 {[%clk 0:00:07]}  Rd2+ {[%clk 0:00:27]} 48. Ke3 {[%clk 0:00:07]}  Rb2 {[%clk 0:00:27]} 49. Ra6 {[%clk 0:00:07]}  Ke5 {[%clk 0:00:26]} 50. Ra5+ {[%clk 0:00:07]}  Kf6 {[%clk 0:00:25]} 51. Rc5 {[%clk 0:00:05]}  Rb3+ {[%clk 0:00:24]} 52. Ke4 {[%clk 0:00:06]}  Rb4 {[%clk 0:00:20]} 53. Rc6 {[%clk 0:00:04]}  Ke7 {[%clk 0:00:20]} 54. Ke5 {[%clk 0:00:03]}  Rb5+ {[%clk 0:00:21]} 55. Kd4 {[%clk 0:00:03]}  Rd5+ {[%clk 0:00:20]} 56. Ke4 {[%clk 0:00:02]}  Rd2 {[%clk 0:00:20]} 57. R6xc4 {[%clk 0:00:03]}  Bxc4 {[%clk 0:00:19]} 58. Rxc4 {[%clk 0:00:03]}  Kf6 {[%clk 0:00:16]} 59. Rc6+ {[%clk 0:00:04]}  Kg7 {[%clk 0:00:16]} 60. Rc7+ {[%clk 0:00:04]}  Kf6 {[%clk 0:00:16]} 61. Rc6+ {[%clk 0:00:04]}  Kg7 {[%clk 0:00:17]} 62. Ke5 {[%clk 0:00:04]}  Rd3 {[%clk 0:00:12]} 63. Rc7+ {[%clk 0:00:01]}  Kg8 {[%clk 0:00:13]} 64. Kf6 {[%clk 0:00:00]}  Rd6+ {[%clk 0:00:12]} 0-1


[Site "https://www.chess.com"]